[Event "Titled Tuesday Blitz June 27 Early 2023"]
[White "NLLO777"]
[Black "Luxama, Jacques Muller"]
[BlackFideId "11900113"]
[WhiteElo "2476"]
[BlackElo "2189"]
[Result "1-0"]
[Round "4"]
[TimeControl "180+2"]
[Date "2023.06.27"]
[WhiteClock "0:00:15"]
[BlackClock "0:00:06"]
[Board "187"]

1. Nf3 {[%clk 0:03:00]}  Nf6 {[%clk 0:02:59]} 2. g3 {[%clk 0:03:00]}  g6 {[%clk 0:02:58]} 3. Bg2 {[%clk 0:03:01]}  Bg7 {[%clk 0:02:58]} 4. O-O {[%clk 0:03:01]}  O-O {[%clk 0:02:59]} 5. d4 {[%clk 0:03:01]}  d5 {[%clk 0:02:58]} 6. c4 {[%clk 0:03:01]}  c6 {[%clk 0:02:58]} 7. Nc3 {[%clk 0:02:58]}  Bf5 {[%clk 0:02:57]} 8. Qb3 {[%clk 0:02:55]}  Qb6 {[%clk 0:02:39]} 9. Ne5 {[%clk 0:02:39]}  dxc4 {[%clk 0:02:19]} 10. Qxb6 {[%clk 0:02:37]}  axb6 {[%clk 0:02:18]} 11. Nxc4 {[%clk 0:02:38]}  Nbd7 {[%clk 0:02:14]} 12. e4 {[%clk 0:02:34]}  Be6 {[%clk 0:02:14]} 13. d5 {[%clk 0:02:32]}  cxd5 {[%clk 0:02:14]} 14. exd5 {[%clk 0:02:33]}  Bf5 {[%clk 0:02:13]} 15. Re1 {[%clk 0:02:32]}  Rfe8 {[%clk 0:02:11]} 16. Be3 {[%clk 0:02:30]}  Ng4 {[%clk 0:01:52]} 17. Nxb6 {[%clk 0:02:23]}  Nxe3 {[%clk 0:01:46]} 18. Nxa8 {[%clk 0:02:23]}  Nxg2 {[%clk 0:01:45]} 19. Nc7 {[%clk 0:02:11]}  Rc8 {[%clk 0:01:44]} 20. Kxg2 {[%clk 0:01:56]}  Rxc7 {[%clk 0:01:43]} 21. Rxe7 {[%clk 0:01:57]}  Bf6 {[%clk 0:01:40]} 22. Re3 {[%clk 0:01:46]}  Ne5 {[%clk 0:01:35]} 23. Ne4 {[%clk 0:01:37]}  Bg7 {[%clk 0:01:28]} 24. Nd6 {[%clk 0:01:33]}  Bd7 {[%clk 0:01:23]} 25. Rae1 {[%clk 0:01:15]}  Ng4 {[%clk 0:00:59]} 26. R3e2 {[%clk 0:00:57]}  Bf8 {[%clk 0:00:53]} 27. Ne4 {[%clk 0:00:51]}  f5 {[%clk 0:00:44]} 28. Ng5 {[%clk 0:00:48]}  h6 {[%clk 0:00:43]} 29. Ne6 {[%clk 0:00:48]}  Rc4 {[%clk 0:00:40]} 30. Nxf8 {[%clk 0:00:43]}  Kxf8 {[%clk 0:00:40]} 31. Re7 {[%clk 0:00:42]}  Bb5 {[%clk 0:00:28]} 32. Rxb7 {[%clk 0:00:40]}  Rc5 {[%clk 0:00:29]} 33. Rd1 {[%clk 0:00:31]}  Rxd5 {[%clk 0:00:24]} 34. Rxd5 {[%clk 0:00:30]}  Bc6 {[%clk 0:00:25]} 35. Rb5 {[%clk 0:00:18]}  Nf6 {[%clk 0:00:23]} 36. Kg1 {[%clk 0:00:13]}  Bxd5 {[%clk 0:00:21]} 37. Rb6 {[%clk 0:00:14]}  Kf7 {[%clk 0:00:20]} 38. a4 {[%clk 0:00:14]}  Ne4 {[%clk 0:00:15]} 39. a5 {[%clk 0:00:13]}  Nc5 {[%clk 0:00:12]} 40. b4 {[%clk 0:00:12]}  Nd3 {[%clk 0:00:09]} 41. b5 {[%clk 0:00:11]}  Nc1 {[%clk 0:00:07]} 42. a6 {[%clk 0:00:10]}  Ne2+ {[%clk 0:00:08]} 43. Kf1 {[%clk 0:00:10]}  Bc4 {[%clk 0:00:08]} 44. Ke1 {[%clk 0:00:10]}  Nc3 {[%clk 0:00:07]} 45. a7 {[%clk 0:00:10]}  Nxb5 {[%clk 0:00:07]} 46. Rxb5 {[%clk 0:00:10]}  Bxb5 {[%clk 0:00:07]} 47. a8=Q {[%clk 0:00:11]}  Bd7 {[%clk 0:00:08]} 48. Qd5+ {[%clk 0:00:10]}  Be6 {[%clk 0:00:09]} 49. Qe5 {[%clk 0:00:10]}  g5 {[%clk 0:00:09]} 50. f4 {[%clk 0:00:11]}  g4 {[%clk 0:00:08]} 51. Kd2 {[%clk 0:00:10]}  h5 {[%clk 0:00:08]} 52. Ke3 {[%clk 0:00:11]}  h4 {[%clk 0:00:08]} 53. Kd4 {[%clk 0:00:12]}  hxg3 {[%clk 0:00:08]} 54. hxg3 {[%clk 0:00:13]}  Bd7 {[%clk 0:00:08]} 55. Qc7 {[%clk 0:00:14]}  Ke7 {[%clk 0:00:07]} 56. Ke5 {[%clk 0:00:15]}  Ke8 {[%clk 0:00:06]} 57. Kd6 {[%clk 0:00:14]}  Bc8 {[%clk 0:00:06]} 58. Qe7# {[%clk 0:00:15]} 1-0


[Site "https://www.chess.com"]

[Event "Titled Tuesday Blitz June 27 Early 2023"]
[White "Herzog2012"]
[Black "Ho, In Hei Henry"]
[BlackFideId "6002552"]
[WhiteElo "2462"]
[BlackElo "2021"]
[Result "1-0"]
[Round "4"]
[TimeControl "180+2"]
[Date "2023.06.27"]
[WhiteClock "0:00:28"]
[BlackClock "0:00:27"]
[Board "193"]

1. e4 {[%clk 0:03:00]}  g6 {[%clk 0:02:59]} 2. d4 {[%clk 0:03:00]}  Bg7 {[%clk 0:03:00]} 3. Nc3 {[%clk 0:03:01]}  d6 {[%clk 0:03:01]} 4. f4 {[%clk 0:03:01]}  Nf6 {[%clk 0:03:01]} 5. Nf3 {[%clk 0:03:02]}  O-O {[%clk 0:03:02]} 6. Bd3 {[%clk 0:03:01]}  c6 {[%clk 0:03:00]} 7. e5 {[%clk 0:02:46]}  dxe5 {[%clk 0:02:57]} 8. dxe5 {[%clk 0:02:47]}  Nd5 {[%clk 0:02:57]} 9. Nxd5 {[%clk 0:02:46]}  cxd5 {[%clk 0:02:55]} 10. Be3 {[%clk 0:02:37]}  Nc6 {[%clk 0:02:52]} 11. O-O {[%clk 0:02:33]}  Bg4 {[%clk 0:02:51]} 12. h3 {[%clk 0:02:26]}  Bxf3 {[%clk 0:02:51]} 13. Qxf3 {[%clk 0:02:27]}  e6 {[%clk 0:02:48]} 14. c3 {[%clk 0:02:20]}  a6 {[%clk 0:02:43]} 15. Rad1 {[%clk 0:02:16]}  Qa5 {[%clk 0:02:37]} 16. a3 {[%clk 0:02:13]}  b5 {[%clk 0:02:34]} 17. Qf2 {[%clk 0:02:11]}  Qc7 {[%clk 0:02:32]} 18. Bb6 {[%clk 0:02:04]}  Qb7 {[%clk 0:02:32]} 19. Bc5 {[%clk 0:02:04]}  Rfd8 {[%clk 0:02:28]} 20. Bc2 {[%clk 0:01:58]}  Na5 {[%clk 0:02:23]} 21. Bb6 {[%clk 0:01:53]}  Nc4 {[%clk 0:02:18]} 22. Bxd8 {[%clk 0:01:52]}  Rxd8 {[%clk 0:02:19]} 23. Bd3 {[%clk 0:01:45]}  Nb6 {[%clk 0:02:10]} 24. Kh2 {[%clk 0:01:40]}  Qc7 {[%clk 0:02:08]} 25. Bc2 {[%clk 0:01:29]}  Nc4 {[%clk 0:02:07]} 26. Bb3 {[%clk 0:01:24]}  Nb6 {[%clk 0:02:00]} 27. Ra1 {[%clk 0:01:19]}  Bf8 {[%clk 0:01:59]} 28. a4 {[%clk 0:01:18]}  Bc5 {[%clk 0:01:57]} 29. Qe2 {[%clk 0:01:16]}  bxa4 {[%clk 0:01:43]} 30. Bxa4 {[%clk 0:01:17]}  Nc4 {[%clk 0:01:43]} 31. Bb3 {[%clk 0:01:10]}  Rb8 {[%clk 0:01:27]} 32. Bxc4 {[%clk 0:01:07]}  dxc4 {[%clk 0:01:27]} 33. Rxa6 {[%clk 0:01:06]}  Kg7 {[%clk 0:01:19]} 34. Ra4 {[%clk 0:01:03]}  Be7 {[%clk 0:01:09]} 35. Rxc4 {[%clk 0:01:01]}  Qb6 {[%clk 0:01:07]} 36. b4 {[%clk 0:00:52]}  f6 {[%clk 0:01:05]} 37. exf6+ {[%clk 0:00:49]}  Bxf6 {[%clk 0:01:06]} 38. Re1 {[%clk 0:00:47]}  Qb5 {[%clk 0:01:04]} 39. Rc7+ {[%clk 0:00:44]}  Kh6 {[%clk 0:00:55]} 40. Qxb5 {[%clk 0:00:45]}  Rxb5 {[%clk 0:00:51]} 41. Rxe6 {[%clk 0:00:45]}  Rf5 {[%clk 0:00:47]} 42. Rc4 {[%clk 0:00:30]}  Bd8 {[%clk 0:00:37]} 43. g4 {[%clk 0:00:29]}  Rd5 {[%clk 0:00:27]} 44. Rd4 {[%clk 0:00:28]} 1-0


[Site "https://www.chess.com"]

[Event "Titled Tuesday Blitz June 27 Early 2023"]
[White "Reprintsev, Alexander"]
[Black "Viasus, Juan Diego"]
[WhiteFideId "14100541"]
[BlackFideId "4464346"]
[WhiteElo "2456"]
[BlackElo "1456"]
[Result "1-0"]
[Round "4"]
[TimeControl "180+2"]
[Date "2023.06.27"]
[WhiteClock "0:00:14"]
[BlackClock "0:00:00"]
[Board "195"]

1. e4 {[%clk 0:02:40]}  c5 {[%clk 0:02:57]} 2. b3 {[%clk 0:02:39]}  Nc6 {[%clk 0:02:56]} 3. Bb2 {[%clk 0:02:39]}  d6 {[%clk 0:02:56]} 4. Bb5 {[%clk 0:02:38]}  Nf6 {[%clk 0:02:54]} 5. f3 {[%clk 0:02:35]}  g6 {[%clk 0:02:54]} 6. Ne2 {[%clk 0:02:30]}  Bd7 {[%clk 0:02:54]} 7. d4 {[%clk 0:02:27]}  cxd4 {[%clk 0:02:54]} 8. Nxd4 {[%clk 0:02:27]}  Bg7 {[%clk 0:02:54]} 9. Nc3 {[%clk 0:02:26]}  O-O {[%clk 0:02:54]} 10. h4 {[%clk 0:02:24]}  Rc8 {[%clk 0:02:51]} 11. h5 {[%clk 0:02:20]}  Nxd4 {[%clk 0:02:50]} 12. Qxd4 {[%clk 0:01:54]}  Bxb5 {[%clk 0:02:40]} 13. hxg6 {[%clk 0:01:53]}  hxg6 {[%clk 0:02:38]} 14. Qxa7 {[%clk 0:01:17]}  Ba6 {[%clk 0:01:55]} 15. O-O-O {[%clk 0:01:15]}  Qc7 {[%clk 0:01:47]} 16. Rd2 {[%clk 0:01:13]}  Nd7 {[%clk 0:01:26]} 17. Nd5 {[%clk 0:01:12]}  Bxb2+ {[%clk 0:01:23]} 18. Kxb2 {[%clk 0:01:11]}  Qd8 {[%clk 0:01:20]} 19. Qd4 {[%clk 0:01:09]}  e5 {[%clk 0:01:19]} 20. Qe3 {[%clk 0:01:08]}  g5 {[%clk 0:00:55]} 21. g4 {[%clk 0:01:05]}  f6 {[%clk 0:00:39]} 22. Rdh2 {[%clk 0:01:04]}  Nc5 {[%clk 0:00:32]} 23. Rh8+ {[%clk 0:00:59]}  Kf7 {[%clk 0:00:32]} 24. R1h7+ {[%clk 0:00:59]}  Ke8 {[%clk 0:00:33]} 25. f4 {[%clk 0:00:49]}  exf4 {[%clk 0:00:20]} 26. Qh3 {[%clk 0:00:49]}  Rxh8 {[%clk 0:00:16]} 27. Rxh8+ {[%clk 0:00:47]}  Kd7 {[%clk 0:00:17]} 28. Rxd8+ {[%clk 0:00:46]}  Rxd8 {[%clk 0:00:18]} 29. Nxf6+ {[%clk 0:00:46]}  Kc6 {[%clk 0:00:18]} 30. b4 {[%clk 0:00:35]}  Na4+ {[%clk 0:00:13]} 31. Ka3 {[%clk 0:00:27]}  Nb6 {[%clk 0:00:12]} 32. Nd5 {[%clk 0:00:18]}  Nc4+ {[%clk 0:00:12]} 33. Kb3 {[%clk 0:00:18]}  Ra8 {[%clk 0:00:06]} 34. a4 {[%clk 0:00:18]}  Nd2+ {[%clk 0:00:03]} 35. Kb2 {[%clk 0:00:17]}  Nxe4 {[%clk 0:00:03]} 36. Ne7+ {[%clk 0:00:17]}  Kd7 {[%clk 0:00:03]} 37. Qh7 {[%clk 0:00:16]}  Bc4 {[%clk 0:00:00]} 38. Nd5+ {[%clk 0:00:14]} 1-0


[Site "https://www.chess.com"]

[Event "Titled Tuesday Blitz June 27 Early 2023"]
[White "Alahakoon, Isuru"]
[Black "Yelisieiev, Yevhenii"]
[WhiteFideId "9900993"]
[BlackFideId "14139642"]
[WhiteElo "2347"]
[BlackElo "2519"]
[Result "0-1"]
[Round "4"]
[TimeControl "180+2"]
[Date "2023.06.27"]
[WhiteClock "0:00:00"]
[BlackClock "0:00:23"]
[Board "198"]

1. Nf3 {[%clk 0:02:28]}  d6 {[%clk 0:03:00]} 2. d4 {[%clk 0:02:27]}  Nf6 {[%clk 0:03:01]} 3. Nc3 {[%clk 0:02:26]}  Nbd7 {[%clk 0:03:02]} 4. e4 {[%clk 0:02:25]}  e5 {[%clk 0:03:03]} 5. Bc4 {[%clk 0:02:25]}  Be7 {[%clk 0:03:03]} 6. a4 {[%clk 0:02:24]}  O-O {[%clk 0:03:03]} 7. a5 {[%clk 0:02:24]}  c6 {[%clk 0:03:04]} 8. O-O {[%clk 0:02:23]}  Nxe4 {[%clk 0:03:05]} 9. Nxe4 {[%clk 0:02:16]}  d5 {[%clk 0:03:05]} 10. Bd3 {[%clk 0:02:12]}  dxe4 {[%clk 0:03:05]} 11. Bxe4 {[%clk 0:02:13]}  Nf6 {[%clk 0:03:06]} 12. Qe2 {[%clk 0:02:01]}  Nxe4 {[%clk 0:03:06]} 13. Qxe4 {[%clk 0:02:02]}  exd4 {[%clk 0:03:07]} 14. Nxd4 {[%clk 0:01:49]}  Bf6 {[%clk 0:03:06]} 15. Be3 {[%clk 0:01:46]}  Re8 {[%clk 0:03:03]} 16. Qd3 {[%clk 0:01:42]}  Bg4 {[%clk 0:02:47]} 17. a6 {[%clk 0:01:35]}  b6 {[%clk 0:02:41]} 18. Nxc6 {[%clk 0:01:34]}  Qxd3 {[%clk 0:02:41]} 19. cxd3 {[%clk 0:01:35]}  Be2 {[%clk 0:02:38]} 20. Rfe1 {[%clk 0:01:27]}  Bxd3 {[%clk 0:02:38]} 21. Nb4 {[%clk 0:01:09]}  Bb5 {[%clk 0:02:30]} 22. Nd5 {[%clk 0:00:58]}  Be5 {[%clk 0:02:25]} 23. f4 {[%clk 0:00:51]}  Bd6 {[%clk 0:02:22]} 24. Kf2 {[%clk 0:00:35]}  Rac8 {[%clk 0:02:15]} 25. Nc3 {[%clk 0:00:32]}  Bc4 {[%clk 0:02:12]} 26. Ra4 {[%clk 0:00:32]}  f5 {[%clk 0:01:43]} 27. g3 {[%clk 0:00:31]}  Kf7 {[%clk 0:01:42]} 28. Raa1 {[%clk 0:00:30]}  Bb4 {[%clk 0:01:32]} 29. Bd4 {[%clk 0:00:25]}  Rxe1 {[%clk 0:01:30]} 30. Kxe1 {[%clk 0:00:26]}  Re8+ {[%clk 0:01:20]} 31. Kf2 {[%clk 0:00:26]}  Bd3 {[%clk 0:01:08]} 32. Be5 {[%clk 0:00:22]}  Bc5+ {[%clk 0:01:07]} 33. Kf3 {[%clk 0:00:16]}  g5 {[%clk 0:01:08]} 34. h3 {[%clk 0:00:14]}  h5 {[%clk 0:01:07]} 35. Rd1 {[%clk 0:00:11]}  g4+ {[%clk 0:01:06]} 36. hxg4 {[%clk 0:00:11]}  fxg4+ {[%clk 0:00:59]} 37. Kg2 {[%clk 0:00:11]}  Bxa6 {[%clk 0:00:59]} 38. Rd7+ {[%clk 0:00:10]}  Ke6 {[%clk 0:00:59]} 39. Rh7 {[%clk 0:00:10]}  Rd8 {[%clk 0:00:54]} 40. Rh6+ {[%clk 0:00:09]}  Kf7 {[%clk 0:00:54]} 41. Rh7+ {[%clk 0:00:07]}  Kg6 {[%clk 0:00:51]} 42. Rg7+ {[%clk 0:00:05]}  Kh6 {[%clk 0:00:48]} 43. Ne4 {[%clk 0:00:05]}  Bd4 {[%clk 0:00:28]} 44. Bxd4 {[%clk 0:00:02]}  Rxd4 {[%clk 0:00:27]} 45. Rxa7 {[%clk 0:00:03]}  Rxe4 {[%clk 0:00:22]} 46. Rxa6 {[%clk 0:00:02]}  Re2+ {[%clk 0:00:23]} 47. Kg1 {[%clk 0:00:02]}  Rxb2 {[%clk 0:00:23]} 48. Ra7 {[%clk 0:00:02]}  Kg6 {[%clk 0:00:22]} 49. Rb7 {[%clk 0:00:01]}  Kf5 {[%clk 0:00:22]} 50. Rh7 {[%clk 0:00:01]}  Ke4 {[%clk 0:00:22]} 51. Rxh5 {[%clk 0:00:00]}  Kf3 {[%clk 0:00:23]} 0-1


[Site "https://www.chess.com"]

[Event "Titled Tuesday Blitz June 27 Early 2023"]
[White "Ruge, Edison"]
[Black "Zheenbekov, Nurgazy"]
[WhiteFideId "4401000"]
[BlackFideId "13800485"]
[WhiteElo "2204"]
[BlackElo "2418"]
[Result "0-1"]
[Round "4"]
[TimeControl "180+2"]
[Date "2023.06.27"]
[WhiteClock "0:00:24"]
[BlackClock "0:00:26"]
[Board "202"]

1. e4 {[%clk 0:02:57]}  e5 {[%clk 0:02:59]} 2. Nf3 {[%clk 0:02:57]}  Nc6 {[%clk 0:02:59]} 3. Bb5 {[%clk 0:02:58]}  a6 {[%clk 0:02:59]} 4. Ba4 {[%clk 0:02:59]}  Nf6 {[%clk 0:02:59]} 5. Qe2 {[%clk 0:02:59]}  b5 {[%clk 0:02:58]} 6. Bb3 {[%clk 0:03:00]}  Be7 {[%clk 0:02:58]} 7. a4 {[%clk 0:03:00]}  b4 {[%clk 0:02:56]} 8. a5 {[%clk 0:03:00]}  O-O {[%clk 0:02:56]} 9. d3 {[%clk 0:03:01]}  d5 {[%clk 0:02:48]} 10. h3 {[%clk 0:03:01]}  Be6 {[%clk 0:02:35]} 11. Nbd2 {[%clk 0:03:00]}  Re8 {[%clk 0:02:26]} 12. Ba4 {[%clk 0:02:58]}  Bd7 {[%clk 0:02:22]} 13. Bxc6 {[%clk 0:02:57]}  Bxc6 {[%clk 0:02:22]} 14. Nxe5 {[%clk 0:02:58]}  Bb7 {[%clk 0:02:22]} 15. Ng4 {[%clk 0:02:44]}  dxe4 {[%clk 0:02:12]} 16. dxe4 {[%clk 0:02:43]}  Nxe4 {[%clk 0:02:08]} 17. Nxe4 {[%clk 0:02:40]}  Bxe4 {[%clk 0:02:07]} 18. O-O {[%clk 0:02:38]}  Bd6 {[%clk 0:02:01]} 19. Qc4 {[%clk 0:01:54]}  h5 {[%clk 0:01:13]} 20. Nh2 {[%clk 0:01:40]}  Qf6 {[%clk 0:01:04]} 21. f4 {[%clk 0:01:28]}  Qg6 {[%clk 0:00:53]} 22. Nf3 {[%clk 0:01:23]}  Bxc2 {[%clk 0:00:50]} 23. Nh4 {[%clk 0:01:10]}  Qd3 {[%clk 0:00:43]} 24. Qxd3 {[%clk 0:01:06]}  Bxd3 {[%clk 0:00:43]} 25. Rd1 {[%clk 0:01:05]}  Bc5+ {[%clk 0:00:39]} 26. Kh2 {[%clk 0:01:04]}  Rad8 {[%clk 0:00:38]} 27. Nf3 {[%clk 0:00:58]}  Be2 {[%clk 0:00:37]} 28. Rxd8 {[%clk 0:00:56]}  Rxd8 {[%clk 0:00:37]} 29. Ne5 {[%clk 0:00:56]}  Rd1 {[%clk 0:00:33]} 30. Nc6 {[%clk 0:00:40]}  h4 {[%clk 0:00:31]} 31. g4 {[%clk 0:00:39]}  Bf3 {[%clk 0:00:28]} 32. Be3 {[%clk 0:00:24]}  Rxa1 {[%clk 0:00:26]} 0-1


[Site "https://www.chess.com"]

[Event "Titled Tuesday Blitz June 27 Early 2023"]
[White "LeoLV10"]
[Black "Ivanova, Karina"]
[BlackFideId "24139750"]
[WhiteElo "2415"]
[BlackElo "2173"]
[Result "1-0"]
[Round "4"]
[TimeControl "180+2"]
[Date "2023.06.27"]
[WhiteClock "0:01:49"]
[BlackClock "0:00:19"]
[Board "203"]

1. e4 {[%clk 0:02:58]}  e5 {[%clk 0:02:56]} 2. Nf3 {[%clk 0:02:58]}  Nc6 {[%clk 0:02:55]} 3. Bb5 {[%clk 0:02:58]}  Nf6 {[%clk 0:02:54]} 4. O-O {[%clk 0:02:57]}  d6 {[%clk 0:02:51]} 5. Re1 {[%clk 0:02:54]}  a6 {[%clk 0:02:50]} 6. Ba4 {[%clk 0:02:54]}  b5 {[%clk 0:02:48]} 7. Bb3 {[%clk 0:02:54]}  Be7 {[%clk 0:02:48]} 8. c3 {[%clk 0:02:54]}  O-O {[%clk 0:02:42]} 9. h3 {[%clk 0:02:54]}  Bb7 {[%clk 0:02:38]} 10. d4 {[%clk 0:02:54]}  exd4 {[%clk 0:01:53]} 11. cxd4 {[%clk 0:02:55]}  Na5 {[%clk 0:01:47]} 12. Bc2 {[%clk 0:02:47]}  c5 {[%clk 0:01:45]} 13. d5 {[%clk 0:02:46]}  Nd7 {[%clk 0:01:30]} 14. Nc3 {[%clk 0:02:38]}  b4 {[%clk 0:01:29]} 15. Ne2 {[%clk 0:02:37]}  Bf6 {[%clk 0:01:24]} 16. Ng3 {[%clk 0:02:35]}  g6 {[%clk 0:01:20]} 17. Rb1 {[%clk 0:02:34]}  Nc4 {[%clk 0:01:18]} 18. b3 {[%clk 0:02:31]}  Nce5 {[%clk 0:01:18]} 19. Nxe5 {[%clk 0:02:30]}  Bxe5 {[%clk 0:01:14]} 20. f4 {[%clk 0:02:30]}  Bd4+ {[%clk 0:01:05]} 21. Be3 {[%clk 0:02:27]}  Bc3 {[%clk 0:01:05]} 22. Rf1 {[%clk 0:02:26]}  f6 {[%clk 0:01:00]} 23. Qg4 {[%clk 0:02:20]}  Qe7 {[%clk 0:00:56]} 24. Nf5 {[%clk 0:02:17]}  Qd8 {[%clk 0:00:45]} 25. Nxd6 {[%clk 0:02:16]}  Ra7 {[%clk 0:00:40]} 26. Nc4 {[%clk 0:02:07]}  Qe7 {[%clk 0:00:37]} 27. Qe6+ {[%clk 0:01:57]}  Rf7 {[%clk 0:00:33]} 28. Nd6 {[%clk 0:01:55]}  Qxe6 {[%clk 0:00:26]} 29. dxe6 {[%clk 0:01:56]}  Re7 {[%clk 0:00:26]} 30. exd7 {[%clk 0:01:56]}  Rxd7 {[%clk 0:00:19]} 31. Bxc5 {[%clk 0:01:49]} 1-0


[Site "https://www.chess.com"]

[Event "Titled Tuesday Blitz June 27 Early 2023"]
[White "Vianello, Enrico"]
[Black "Tanmay Jain"]
[WhiteFideId "810738"]
[BlackFideId "45015481"]
[WhiteElo "2163"]
[BlackElo "2415"]
[Result "0-1"]
[Round "4"]
[TimeControl "180+2"]
[Date "2023.06.27"]
[WhiteClock "0:00:06"]
[BlackClock "0:00:20"]
[Board "204"]

1. Nf3 {[%clk 0:03:00]}  d5 {[%clk 0:03:00]} 2. e3 {[%clk 0:02:59]}  Nf6 {[%clk 0:02:59]} 3. c4 {[%clk 0:02:59]}  e6 {[%clk 0:03:00]} 4. Nc3 {[%clk 0:02:58]}  Be7 {[%clk 0:03:00]} 5. b3 {[%clk 0:02:57]}  O-O {[%clk 0:03:00]} 6. Bb2 {[%clk 0:02:57]}  b6 {[%clk 0:03:01]} 7. Qc2 {[%clk 0:02:55]}  Bb7 {[%clk 0:03:02]} 8. Be2 {[%clk 0:02:55]}  c5 {[%clk 0:03:02]} 9. cxd5 {[%clk 0:02:53]}  exd5 {[%clk 0:03:02]} 10. d4 {[%clk 0:02:54]}  Nc6 {[%clk 0:03:00]} 11. Rc1 {[%clk 0:02:52]}  cxd4 {[%clk 0:02:59]} 12. Nxd4 {[%clk 0:02:51]}  Nxd4 {[%clk 0:02:38]} 13. exd4 {[%clk 0:02:52]}  Bd6 {[%clk 0:02:39]} 14. O-O {[%clk 0:02:49]}  Rc8 {[%clk 0:02:39]} 15. Qf5 {[%clk 0:02:45]}  Bb4 {[%clk 0:02:17]} 16. Bf3 {[%clk 0:02:34]}  Bxc3 {[%clk 0:02:04]} 17. Bxc3 {[%clk 0:02:30]}  Qd6 {[%clk 0:02:04]} 18. Bb2 {[%clk 0:02:23]}  Ne4 {[%clk 0:01:55]} 19. Rfd1 {[%clk 0:02:11]}  Rfe8 {[%clk 0:01:38]} 20. Bg4 {[%clk 0:01:52]}  g6 {[%clk 0:01:26]} 21. Qf3 {[%clk 0:01:44]}  f5 {[%clk 0:01:24]} 22. Bh3 {[%clk 0:01:43]}  a6 {[%clk 0:01:09]} 23. Qd3 {[%clk 0:01:40]}  b5 {[%clk 0:01:08]} 24. g3 {[%clk 0:01:37]}  Qe7 {[%clk 0:01:02]} 25. Bg2 {[%clk 0:01:33]}  Nf6 {[%clk 0:01:01]} 26. Bf1 {[%clk 0:01:20]}  Ne4 {[%clk 0:00:54]} 27. Re1 {[%clk 0:01:18]}  Qd6 {[%clk 0:00:50]} 28. Bg2 {[%clk 0:01:13]}  Rxc1 {[%clk 0:00:48]} 29. Rxc1 {[%clk 0:01:12]}  Nf6 {[%clk 0:00:45]} 30. Qc2 {[%clk 0:01:09]}  f4 {[%clk 0:00:36]} 31. Qc5 {[%clk 0:00:55]}  Qe6 {[%clk 0:00:30]} 32. Bc3 {[%clk 0:00:51]}  Ne4 {[%clk 0:00:26]} 33. Bxe4 {[%clk 0:00:49]}  dxe4 {[%clk 0:00:24]} 34. Re1 {[%clk 0:00:41]}  f3 {[%clk 0:00:20]} 35. d5 {[%clk 0:00:06]}  Qh3 {[%clk 0:00:20]} 0-1


[Site "https://www.chess.com"]

[Event "Titled Tuesday Blitz June 27 Early 2023"]
[White "Vila Dupla, Aurelio"]
[Black "Liu, Xiangyi"]
[WhiteFideId "2203383"]
[BlackFideId "8605718"]
[WhiteElo "2214"]
[BlackElo "2730"]
[Result "0-1"]
[Round "4"]
[TimeControl "180+2"]
[Date "2023.06.27"]
[WhiteClock "0:00:00"]
[BlackClock "0:00:29"]
[Board "206"]

1. e4 {[%clk 0:03:00]}  b6 {[%clk 0:02:59]} 2. d4 {[%clk 0:02:59]}  Bb7 {[%clk 0:02:59]} 3. Nc3 {[%clk 0:02:59]}  e6 {[%clk 0:02:59]} 4. a3 {[%clk 0:02:58]}  d5 {[%clk 0:02:56]} 5. Nf3 {[%clk 0:02:55]}  dxe4 {[%clk 0:02:54]} 6. Ng5 {[%clk 0:02:51]}  Nf6 {[%clk 0:02:51]} 7. Bb5+ {[%clk 0:02:47]}  Nbd7 {[%clk 0:02:51]} 8. Qe2 {[%clk 0:02:34]}  a6 {[%clk 0:02:51]} 9. Bc4 {[%clk 0:02:18]}  b5 {[%clk 0:02:48]} 10. Ba2 {[%clk 0:01:58]}  Nb6 {[%clk 0:02:30]} 11. O-O {[%clk 0:01:43]}  Qxd4 {[%clk 0:02:26]} 12. Rd1 {[%clk 0:01:02]}  Qe5 {[%clk 0:02:22]} 13. g3 {[%clk 0:00:59]}  Qf5 {[%clk 0:01:10]} 14. Bf4 {[%clk 0:00:24]}  Nbd5 {[%clk 0:01:09]} 15. Bxd5 {[%clk 0:00:17]}  exd5 {[%clk 0:01:08]} 16. Nxb5 {[%clk 0:00:17]}  axb5 {[%clk 0:00:51]} 17. Qxb5+ {[%clk 0:00:16]}  c6 {[%clk 0:00:51]} 18. Qxb7 {[%clk 0:00:16]}  Qd7 {[%clk 0:00:33]} 19. Qxa8+ {[%clk 0:00:15]}  Ke7 {[%clk 0:00:34]} 20. Qa4 {[%clk 0:00:11]}  h6 {[%clk 0:00:33]} 21. c4 {[%clk 0:00:06]}  hxg5 {[%clk 0:00:33]} 22. Bxg5 {[%clk 0:00:05]}  Qh3 {[%clk 0:00:33]} 23. Qa7+ {[%clk 0:00:01]}  Ke6 {[%clk 0:00:28]} 24. cxd5+ {[%clk 0:00:00]}  Nxd5 {[%clk 0:00:29]} 0-1


[Site "https://www.chess.com"]

[Event "Titled Tuesday Blitz June 27 Early 2023"]
[White "Mariano, Nelson III"]
[Black "Larina, Maria"]
[WhiteFideId "5201748"]
[BlackFideId "24113182"]
[WhiteElo "2569"]
[BlackElo "2203"]
[Result "1-0"]
[Round "4"]
[TimeControl "180+2"]
[Date "2023.06.27"]
[WhiteClock "0:01:09"]
[BlackClock "0:00:00"]
[Board "208"]

1. e4 {[%clk 0:03:00]}  c6 {[%clk 0:02:58]} 2. d4 {[%clk 0:03:00]}  d5 {[%clk 0:02:54]} 3. e5 {[%clk 0:02:59]}  Bf5 {[%clk 0:02:46]} 4. h4 {[%clk 0:02:58]}  h5 {[%clk 0:02:43]} 5. c4 {[%clk 0:02:55]}  e6 {[%clk 0:02:41]} 6. Nc3 {[%clk 0:02:55]}  dxc4 {[%clk 0:02:37]} 7. Bxc4 {[%clk 0:02:48]}  Nd7 {[%clk 0:02:36]} 8. Nge2 {[%clk 0:02:47]}  Nb6 {[%clk 0:02:34]} 9. Bd3 {[%clk 0:02:45]}  Bxd3 {[%clk 0:02:33]} 10. Qxd3 {[%clk 0:02:44]}  Ne7 {[%clk 0:02:30]} 11. Bg5 {[%clk 0:02:43]}  Qd7 {[%clk 0:02:20]} 12. Ne4 {[%clk 0:02:40]}  Ned5 {[%clk 0:02:18]} 13. O-O {[%clk 0:02:37]}  Nc8 {[%clk 0:02:00]} 14. N2g3 {[%clk 0:02:27]}  Be7 {[%clk 0:01:56]} 15. Qf3 {[%clk 0:02:24]}  Bxg5 {[%clk 0:01:36]} 16. Nxg5 {[%clk 0:02:20]}  g6 {[%clk 0:00:46]} 17. N3e4 {[%clk 0:02:12]}  Qe7 {[%clk 0:00:26]} 18. Rfe1 {[%clk 0:02:06]}  O-O {[%clk 0:00:12]} 19. Nf6+ {[%clk 0:01:49]}  Nxf6 {[%clk 0:00:11]} 20. exf6 {[%clk 0:01:45]}  Qd6 {[%clk 0:00:10]} 21. Ne4 {[%clk 0:01:44]}  Qd5 {[%clk 0:00:05]} 22. Qf4 {[%clk 0:01:40]}  Kh7 {[%clk 0:00:05]} 23. Ng5+ {[%clk 0:01:39]}  Kg8 {[%clk 0:00:05]} 24. Nxe6 {[%clk 0:01:37]}  fxe6 {[%clk 0:00:04]} 25. Qh6 {[%clk 0:01:36]}  Rf7 {[%clk 0:00:03]} 26. Qxg6+ {[%clk 0:01:36]}  Kf8 {[%clk 0:00:04]} 27. Qh6+ {[%clk 0:01:33]}  Ke8 {[%clk 0:00:04]} 28. Re5 {[%clk 0:01:29]}  Qxd4 {[%clk 0:00:03]} 29. Rxe6+ {[%clk 0:01:11]}  Kd7 {[%clk 0:00:04]} 30. Rae1 {[%clk 0:01:10]}  Nd6 {[%clk 0:00:00]} 31. Re7+ {[%clk 0:01:09]} 1-0


[Site "https://www.chess.com"]